Cogmind - Beta 9.3 @@@ ROGUE MODE // 2019.12.31 @ 11:57:41 Player: 3.14 Result: Self-destructed Performance ------------- Evolutions (3) 1500 Regions Visited (11) 2200 Robots Destroyed (182) 910 Value Destroyed (4670) 4670 Prototype IDs (26) 520 Alien Tech Used (0) 0 Bonus (1338) 1338 TOTAL SCORE: 11138 Bonus ------- High Alert Combat Kills 306 Follower Combat Kills 109 Entered Garrisons 200 Used RIF Installer 500 Aligned with FarCom 300 Friendly Fire -77 Cogmind --------- Core Integrity 700/700 Matter 290/300 Energy 150/150 System Corruption 0% Temperature Cool (0) Movement Flying (32) Location -7/Factory Parts ------- > --- POWER (1) -------- Micro Nuclear Core > --- PROPULSION (2) --- Improved Cesium-ion Thruster Improved Cesium-ion Thruster > --- UTILITY (8) ------ Lightpack 2.0 Light Armor Plating Hacking Suite Hacking Suite Improved System Shield Improved System Shield Improved System Shield > --- WEAPON (2) ------- Datajack > --- INVENTORY (24) --- Light Nuclear Core Micro Nuclear Core Advanced Treads Advanced Treads Advanced Treads Gravmag System Improved Flight Unit Xenon Bombardment Thruster Advanced Weight Redist. System Improved Signal Interpreter Improved Propulsion Shielding Relay Coupler [NC] (29) Component Analysis Suite Shock Rifle Gauss Rifle Gauss Rifle Gauss Rifle Mini Grenade Launcher Mini Grenade Launcher Remote Datajack Katana Scythe Peak State ------------ > --- POWER ------------ Micro Nuclear Core > --- PROPULSION ------- Improved Cesium-ion Thruster Improved Cesium-ion Thruster > --- UTILITY ---------- Lightpack 2.0 Light Armor Plating Hacking Suite Hacking Suite Improved System Shield Improved System Shield Improved System Shield > --- WEAPON ----------- Datajack Scythe > --- INVENTORY -------- Light Nuclear Core Micro Nuclear Core Advanced Treads Advanced Treads Advanced Treads Gravmag System Improved Flight Unit Xenon Bombardment Thruster Advanced Weight Redist. System Improved Signal Interpreter Improved Propulsion Shielding Relay Coupler [NC] Component Analysis Suite Shock Rifle Gauss Rifle Gauss Rifle Gauss Rifle Mini Grenade Launcher Mini Grenade Launcher Remote Datajack Katana [Rating: 66] Favorites ----------- Power Light Ion Engine Engine Light Ion Engine Power Core Light Nuclear Core Propulsion Light Treads Treads Light Treads Flight Unit Improved Cesium-ion Thruster Utility High-capacity Storage Unit Device Improved Heat Sink Storage High-capacity Storage Unit Hackware Hacking Suite Protection Core Shielding Weapon Gauss Rifle Energy Gun Medium Laser Ballistic Gun Gauss Rifle Launcher Mini Grenade Launcher Impact Weapon Mace Slashing Weapon Scythe Special Melee Weapon Datajack Build | -11 -10 -10 -9 -9 -9 -8 -8 -8 -8 -8 -7 ------- Run | Scr Mat Min Mat Min Exi Min Mat Gar Mat Sto Fac Slots Evolved 6 | . . . 2 . . . 2 . . . 2 Power . | . . . . . . . . . . . . Propulsion . | . . . . . . . . . . . . Utility 6 | . . . 2 . . . 2 . . . 2 Weapon . | . . . . . . . . . . . . Parts Attached 167 | 6 11 . 40 14 1 1 31 12 14 12 25 Power 18 | 1 2 . 5 . . . 3 1 1 1 4 Engine 12 | 1 2 . 4 . . . 2 1 1 1 . Core 6 | . . . 1 . . . 1 . . . 4 Reactor . | . . . . . . . . . . . . Propulsion 34 | 2 . . 9 3 . . 8 3 5 2 2 Treads 29 | 2 . . 8 3 . . 7 3 4 2 . Leg . | . . . . . . . . . . . . Wheel . | . . . . . . . . . . . . Hover . | . . . . . . . . . . . . Flight 5 | . . . 1 . . . 1 . 1 . 2 Utility 38 | 1 5 . 9 2 1 . 5 1 2 1 11 Device 5 | . . . 2 1 . . 1 . . . 1 Storage 14 | 1 5 . 5 . 1 . . . 1 . 1 Processor . | . . . . . . . . . . . . Hackware 7 | . . . . . . . . . . . 7 Protection 12 | . . . 2 1 . . 4 1 1 1 2 Artifact . | . . . . . . . . . . . . Weapon 77 | 2 4 . 17 9 . 1 15 7 6 8 8 Energy Gun 15 | 1 1 . 5 3 . . . 2 2 1 . Energy Cannon . | . . . . . . . . . . . . Ballistic Gun 30 | 1 1 . 10 3 . . 8 3 1 3 . Ballistic Cannon . | . . . . . . . . . . . . Launcher 20 | . 2 . 2 2 . 1 5 2 2 2 2 Special Weapon . | . . . . . . . . . . . . Impact Weapon 1 | . . . . 1 . . . . . . . Slashing Weapon 9 | . . . . . . . 2 . 1 2 4 Piercing Weapon . | . . . . . . . . . . . . Special Melee Weapon 2 | . . . . . . . . . . . 2 Unidentified Prototypes 2 | . . . 1 . . . . . 1 . . Parts Lost 23 | . 2 . 8 6 . . 2 1 1 2 1 Power 4 | . 1 . 2 1 . . . . . . . Propulsion 5 | . . . 2 3 . . . . . . . Utility 8 | . . . 2 . . . 2 1 1 1 1 Weapon 6 | . 1 . 2 2 . . . . . 1 . Highest Loss Streak 5 | . 1 . 5 5 . . 1 1 1 2 1 Average Slot Usage (%) 93 | . 97 100 93 97 88 88 96 96 96 97 79 Engine 6 | . 13 14 7 9 . . 7 1 9 8 . Core 1 | . . . 2 . . . 1 7 . . 6 Treads 18 | . 28 28 21 21 22 22 18 18 17 18 1 Flight 1 | . . . . . . . . . . . 13 Device 2 | . . . 2 4 . . 7 . . . . Storage 27 | . 26 28 33 33 33 33 27 27 27 27 8 Hackware 3 | . . . . . . . . . . . 29 Protection 10 | . . . 3 6 11 11 17 24 24 26 8 Energy Gun 4 | . 14 14 5 8 . . . 2 5 2 . Ballistic Gun 12 | . 13 14 16 8 22 14 15 12 11 11 . Slashing Weapon 1 | . . . . . . . 1 . . 1 6 Naked Turns . | . . . . . . . . . . . . Heaviest Build 128 | 10 38 38 112 112 103 103 122 126 126 128 126 Greatest Support 43 | 40 40 40 40 40 40 40 43 40 40 42 42 Greatest Overweight (x) 6 | . . . 2 2 2 2 3 3 6 3 2 Average Overweight (x) 1 | . . . 1 2 2 2 2 2 3 2 . Largest Inventory Capacity 48 | 6 16 16 34 28 28 28 28 28 28 28 48 Average Capacity 24 | 5 11 16 24 28 28 28 28 28 28 28 24 Most Carried 28 | 4 14 14 28 28 25 26 28 28 28 28 27 Average Carried 23 | 2 9 14 22 27 24 25 27 27 27 27 21 Final Capacity 28 | 6 16 16 28 28 28 28 28 28 28 28 24 Final Carried 28 | 4 14 14 28 24 25 26 28 28 28 27 22 Class Distribution -------------------- 66% | Hauler-Mutant 13% | Mutant 11% | Hacker-Sprinter 8% | Scavenger-Mutant Dominant Class ---------------- Mutant | -10/Materials Mutant | -10/Mines Hauler-Mutant | -9/Materials Hauler-Mutant | -9/Mines Hauler-Mutant | -9/Exiles Hauler-Mutant | -8/Mines Hauler-Mutant | -8/Materials Hauler-Mutant | -8/Garrison Hauler-Mutant | -8/Materials Hauler-Mutant | -8/Storage Hacker-Sprinter | -7/Factory Resources | -11 -10 -10 -9 -9 -9 -8 -8 -8 -8 -8 -7 ----------- Run | Scr Mat Min Mat Min Exi Min Mat Gar Mat Sto Fac Matter Collected 3651 | 255 71 . 900 226 . 109 953 310 204 291 332 Remotely 16 | . . . 16 . . . . . . . . Salvage Created 6087 | 72 516 . 1594 624 . 25 1450 563 493 354 396 Parts 371 | 2 27 . 95 45 . 1 90 34 33 23 21 Haulers Intercepted 13 | . 2 . 4 . . . 4 . 1 . 2 Recyclers Shooed 10 | . 4 . 3 . . . 1 . 1 1 . Parts Field Recycled . | . . . . . . . . . . . . Retrieved Matter . | . . . . . . . . . . . . Parts Self-Destructed . | . . . . . . . . . . . . Prevented . | . . . . . . . . . . . . Kills | -11 -10 -10 -9 -9 -9 -8 -8 -8 -8 -8 -7 ------- Run | Scr Mat Min Mat Min Exi Min Mat Gar Mat Sto Fac Combat Hostiles Destroyed 128 | . 6 . 27 28 . 3 27 16 10 8 3 Guns 73 | . 4 . 22 10 . . 20 7 6 4 . AOE 54 | . 2 . 5 18 . 3 6 9 4 4 3 Classes Destroyed 17 | 2 5 . 3 3 . . . 1 . 3 . Worker 8 | . . . 5 1 . . 1 . . . 1 Builder 6 | . . . 2 2 . . 1 . . . 1 Tunneler 2 | 1 . . 1 . . . . . . . . Hauler 13 | . 2 . 4 . . . 4 . 1 . 2 Recycler 16 | 1 3 . 4 2 . . 3 . 1 . 2 Mechanic 1 | . . . . . . . . . . 1 . Operator 4 | . 1 . 2 . . . . . . . 1 Watcher 4 | . 1 . 1 . . . 1 . . . 1 Swarmer 37 | . 2 . 10 3 . 3 8 5 3 . 3 Grunt 38 | . 4 . 9 7 . . 10 4 2 2 . Brawler 2 | . . . . . . . . . . 2 . Duelist 4 | . . . . 1 . . 2 . . 1 . Protector 1 | . . . . . . . . . . 1 . Sentry 27 | . . . 8 . . . 7 6 4 2 . Demolisher 2 | . . . . 2 . . . . . . . Hunter 2 | . . . . . . . . 1 1 . . Assembled 15 | . . . . 15 . . . . . . . Best Kill Streak 15 | 1 5 . 9 15 . 3 7 5 3 8 4 Combat Bots Only 15 | . 4 . 4 15 . 3 5 5 3 7 3 Max Kills in Single Turn 4 | 1 1 . 3 4 . 3 2 3 1 2 1 Gunslinging 1 | . . . . 1 . . . 1 . . . Exploded 4 | . 1 . 2 4 . 3 2 3 1 1 1 Melee . | . . . . . . . . . . . . Uniques/NPCs Destroyed . | . . . . . . . . . . . . Combat | -11 -10 -10 -9 -9 -9 -8 -8 -8 -8 -8 -7 -------- Run | Scr Mat Min Mat Min Exi Min Mat Gar Mat Sto Fac Damage Taken 5514 | . 338 . 1338 975 . 48 1681 486 334 314 . Core 530 | . 52 . 150 89 . 4 150 49 5 31 . Absorbed by Shields . | . . . . . . . . . . . . Core Remaining (%) 68 | 100 . 79 . . . 39 . . . 57 . Volleys Fired 347 | 4 42 . 100 44 . 1 88 27 25 13 3 Largest 2 | 2 2 . 2 2 . 1 2 2 2 2 1 Hottest 112 | 70 70 . 100 112 . 30 56 100 100 100 30 Shots Fired 635 | 8 76 . 195 76 . 1 162 49 45 20 3 Gun 579 | 8 70 . 190 65 . . 149 43 40 14 . Cannon . | . . . . . . . . . . . . Launcher 56 | . 6 . 5 11 . 1 13 6 5 6 3 Special . | . . . . . . . . . . . . Kinetic 427 | 4 36 . 141 28 . . 149 33 26 10 . Thermal 104 | 4 34 . 29 37 . . . . . . . Explosive 48 | . 6 . 5 11 . 1 5 6 5 6 3 Electromagnetic 56 | . . . 20 . . . 8 10 14 4 . Robot Hit Streak 27 | 3 6 . 11 8 . . 27 19 6 10 . Robot Miss Streak 5 | 1 2 . 4 3 . 1 4 5 4 2 . Penetration Max 1 | . . . . . . . 1 . 1 1 . Secondary Targets 11 | . . . 6 3 . . 1 1 . . . Max Gunslinging Chain 1 | . . . 1 1 . . 1 1 . . . Shots Hit Robots 419 | 6 46 . 124 53 . . 107 31 25 12 15 Core Hits 291 | 2 24 . 67 60 . 4 58 23 19 21 13 Critical Hits 8 | . 1 . . 1 . . 2 1 2 1 . Critical Kills 4 | . . . . 1 . . . 1 1 1 . Critical Parts Destroyed 3 | . 1 . . . . . 2 . . . . Melee Attacks 77 | . . . . 5 . . 9 . 2 3 58 Impact 5 | . . . . 5 . . . . . . . Slashing 70 | . . . . . . . 9 . 2 3 56 Piercing . | . . . . . . . . . . . . Sneak Attacks 10 | . . . . 1 . . . . . . 9 Combat Hostiles . | . . . . . . . . . . . . Follow-up Attacks . | . . . . . . . . . . . . Damage Inflicted 11999 | 78 658 . 2239 1783 . 123 2981 1076 939 1092 1030 Guns 6700 | 61 470 . 1738 734 . . 2279 600 624 194 . Cannons . | . . . . . . . . . . . . Explosions 4232 | . 173 . 466 991 . 121 650 476 315 898 142 Melee 945 | . . . . 57 . . . . . . 888 Ramming 122 | 17 15 . 35 1 . 2 52 . . . . Kinetic 5001 | 24 185 . 1145 287 . . 2279 507 446 128 . Thermal 1145 | 37 285 . 358 447 . . 18 . . . . Explosive 3917 | . 173 . 436 991 . 121 365 476 315 898 142 Electromagnetic 869 | . . . 265 . . . 267 93 178 66 . Impact 57 | . . . . 57 . . . . . . . Slashing 888 | . . . . . . . . . . . 888 Piercing . | . . . . . . . . . . . . Highest Corruption 4 | . . . . . . . 1 1 4 4 . Average Corruption 2 | . . . . . . . 1 1 2 4 . Corruption Purged . | . . . . . . . . . . . . Effects 20 | . . . . . . . 1 3 8 8 . Message Errors 5 | . . . . . . . . 1 3 1 . Matter Fused 5 | . . . . . . . . . 1 4 . Heat Flow Errors 2 | . . . . . . . . . 2 . . Energy Discharges 4 | . . . . . . . . 1 2 1 . Data Loss (minor) 3 | . . . . . . . 1 1 . 1 . Targeting Errors 1 | . . . . . . . . . . 1 . Overload Shots . | . . . . . . . . . . . . Overflow Damage 201 | . . . 19 21 . . 17 . 40 11 93 Projectiles . | . . . . . . . . . . . . Explosions 100 | . . . 11 21 . . 17 . 40 11 . Melee 101 | . . . 8 . . . . . . . 93 Knockbacks . | . . . . . . . . . . . . Impact . | . . . . . . . . . . . . Kinetic . | . . . . . . . . . . . . Secondary . | . . . . . . . . . . . . Self-Inflicted Damage 295 | . . . 166 8 . 15 . 56 . 50 . Shots 10 | . . . 3 1 . 1 . 3 . 2 . Rammed 12 | 2 2 . 2 1 . 1 4 . . . . Targets Rammed 16 | 3 3 . 3 1 . 1 5 . . . . Kicked . | . . . . . . . . . . . . Crushed 4 | 1 1 . 1 . . . 1 . . . . Highest Temperature 219 | 80 160 . 114 114 . . 36 198 219 144 . Average Temperature 45 | 35 56 . 30 40 . . 14 49 68 52 . Received Heat Transfer 1569 | . 108 . 318 225 . . 612 90 117 99 . Siege Activations . | . . . . . . . . . . . . Robots Corrupted 1 | . . . . . . . 1 . . . . Combat Hostiles 1 | . . . . . . . 1 . . . . Parts Fried 6 | . . . 3 . . . 1 . 2 . . Impact Corruptions 1 | . . . 1 . . . . . . . . Robots Melted . | . . . . . . . . . . . . Combat Hostiles . | . . . . . . . . . . . . Parts Melted 3 | . 1 . 2 . . . . . . . . Heat Transferred 2714 | 111 851 . 740 962 . . 50 . . . . Parts Sabotaged . | . . . . . . . . . . . . Parts Stolen . | . . . . . . . . . . . . Parts Stripped . | . . . . . . . . . . . . Power Chain Reactions 3 | . . . 1 . . . 2 . . . . Missiles Intercepted . | . . . . . . . . . . . . Alert | -11 -10 -10 -9 -9 -9 -8 -8 -8 -8 -8 -7 ------- Run | Scr Mat Min Mat Min Exi Min Mat Gar Mat Sto Fac Peak Influence 793 | 10 180 . 399 237 . 81 489 793 605 531 188 Average Influence 206 | 5 36 . 182 113 . 54 231 582 490 431 104 Maximum Alert Level 3 | . . . 1 1 . . 2 3 2 2 . Low Security (%) 58 | 100 100 100 56 80 . 100 35 . . . 100 Level 1 24 | . . . 43 19 . . 52 21 5 30 . Level 2 15 | . . . . . . . 12 48 94 69 . Level 3 1 | . . . . . . . . 29 . . . Level 4 . | . . . . . . . . . . . . Level 5 . | . . . . . . . . . . . . High Security . | . . . . . . . . . . . . Max Security . | . . . . . . . . . . . . Squads Dispatched 13 | . 2 . 3 . . . 1 . 1 3 3 Investigation 4 | . 1 . 1 . . . . . . . 2 Extermination 1 | . . . . . . . . . . . 1 Reinforcement 5 | . 1 . 2 . . . 1 . . 1 . Assault 2 | . . . . . . . . . . 2 . Garrison 1 | . . . . . . . . . 1 . . Intercept . | . . . . . . . . . . . . Construction Impeded 1 | . . . . . . . 1 . . . . Haulers Reinforced . | . . . . . . . . . . . . Stealth | -11 -10 -10 -9 -9 -9 -8 -8 -8 -8 -8 -7 --------- Run | Scr Mat Min Mat Min Exi Min Mat Gar Mat Sto Fac Distress Signals 15 | . 2 . 5 . . . 5 . . . 3 Communications Jammed . | . . . . . . . . . . . . Distress Signals . | . . . . . . . . . . . . Times Spotted 206 | . 20 . 49 35 . 4 45 13 9 16 15 Peak Tracking Total 18 | . 4 . 6 18 . 4 8 5 4 7 5 Tactical Retreats 13 | . . . . 3 . 1 3 . . 4 2 Traps | -11 -10 -10 -9 -9 -9 -8 -8 -8 -8 -8 -7 ------- Run | Scr Mat Min Mat Min Exi Min Mat Gar Mat Sto Fac Traps Triggered 11 | . 4 . 1 . . . 1 1 1 . 3 Indirectly . | . . . . . . . . . . . . Trap Hack Attempts . | . . . . . . . . . . . . Triggered . | . . . . . . . . . . . . Disarmed 6 | . . . . . . . . . . . 6 Reprogrammed . | . . . . . . . . . . . . Reused . | . . . . . . . . . . . . Traps Extracted . | . . . . . . . . . . . . Installed . | . . . . . . . . . . . . Triggered . | . . . . . . . . . . . . Machines | -11 -10 -10 -9 -9 -9 -8 -8 -8 -8 -8 -7 ---------- Run | Scr Mat Min Mat Min Exi Min Mat Gar Mat Sto Fac Machines Disabled 20 | . 2 . 8 . . . 2 4 . 3 1 Max in Single Turn 4 | . 1 . 4 . . . 1 2 . 2 1 Garrison Access 1 | . . . . . . . . . . . 1 Garrison Relay 2 | . . . . . . . . 2 . . . Machines Sabotaged . | . . . . . . . . . . . . Garrisons Compromised . | . . . . . . . . . . . . Overloaded Fab Kills . | . . . . . . . . . . . . Fab Network Shutdowns . | . . . . . . . . . . . . Hacking | -11 -10 -10 -9 -9 -9 -8 -8 -8 -8 -8 -7 --------- Run | Scr Mat Min Mat Min Exi Min Mat Gar Mat Sto Fac Machines Accessed 33 | . 3 . 8 . 1 . 5 . 2 3 11 Terminals 21 | . 3 . 5 . . . 1 . 1 2 9 Fabricators 1 | . . . . . . . . . . . 1 Repair Stations 4 | . . . 2 . . . 1 . . 1 . Recycling Units . | . . . . . . . . . . . . Scanalyzers 3 | . . . 1 . . . 2 . . . . Garrison Access 3 | . . . . . . . 1 . 1 . 1 Total Hacks 112 | . 11 . 30 . 1 . 17 . 6 12 35 Successful 70 | . 5 . 16 . 1 . 15 . 3 7 23 Failed 41 | . 6 . 14 . . . 2 . 3 5 11 Catastrophic 2 | . . . 1 . . . . . . . 1 Database Lockouts 1 | . . . . . . . . . . . 1 Manual 60 | . 8 . 17 . 1 . 3 . 6 6 19 Terminals 80 | . 11 . 25 . . . 3 . 4 8 29 Fabricators 5 | . . . . . . . . . . . 5 Repair Stations 9 | . . . 3 . . . 2 . . 4 . Recycling Units . | . . . . . . . . . . . . Scanalyzers 13 | . . . 2 . . . 11 . . . . Garrison Access 4 | . . . . . . . 1 . 2 . 1 Terminal Hacks 24 | . 3 . 6 . 1 . . . 1 1 12 Part Schematic 2 | . . . 1 . . . . . . . 1 Robot Analysis 1 | . . . 1 . . . . . . . . Prototype ID Bank 1 | . 1 . . . . . . . . . . Open Door 1 | . . . . . . . . . . 1 . Level Access Points 1 | . . . . . . . . . . . 1 Branch Access Points 2 | . 1 . . . . . . . . . 1 Machine Index 1 | . . . . . . . . . . . 1 Terminal Index 1 | . . . . . . . . . 1 . . Unreport Threat 2 | . . . 2 . . . . . . . . Locate Traps 1 | . . . . . . . . . . . 1 Disarm Traps 1 | . . . . . . . . . . . 1 Dispatch Records 1 | . . . . . . . . . . . 1 Recall Investigation 1 | . . . . . . . . . . . 1 Recall Extermination 1 | . . . . . . . . . . . 1 Recall Reinforcements 1 | . 1 . . . . . . . . . . Hauler Manifests 1 | . . . . . . . . . . . 1 Registered Components 1 | . . . . . . . . . . . 1 Registered Prototypes 1 | . . . . . . . . . . . 1 Zone Layout 2 | . . . 2 . . . . . . . . EX-Prototype ID Bank 1 | . . . . . 1 . . . . . . Fabricator Hacks 4 | . . . . . . . . . . . 4 Load Schematic 1 | . . . . . . . . . . . 1 Build 3 | . . . . . . . . . . . 3 Repair Station Hacks 8 | . . . 2 . . . 2 . . 4 . Scan Component 4 | . . . 1 . . . 1 . . 2 . Repair 4 | . . . 1 . . . 1 . . 2 . Recycling Unit Hacks . | . . . . . . . . . . . . Scanalyzer 13 | . . . 2 . . . 11 . . . . Insert Component 6 | . . . 1 . . . 5 . . . . Analyze 7 | . . . 1 . . . 6 . . . . Garrison Access Hacks 2 | . . . . . . . 1 . . . 1 Unlock Access 1 | . . . . . . . 1 . . . . Seal Access 1 | . . . . . . . . . . . 1 Unauthorized Hacks 52 | . 7 . 17 . . . 2 . 7 4 15 Terminals 18 | . 2 . 6 . . . 1 . 2 2 5 Track 1 | . . . 1 . . . . . . . . Assimilate 5 | . . . . . . . . . . . 5 Botnet 10 | . 2 . 4 . . . 1 . 1 2 . Operators 2 | . . . 1 . . . . . 1 . . Fabricators 1 | . . . . . . . . . . . 1 Siphon 1 | . . . . . . . . . . . 1 Repair Stations . | . . . . . . . . . . . . Recycling Units . | . . . . . . . . . . . . Scanalyzers . | . . . . . . . . . . . . Garrison Access . | . . . . . . . . . . . . Data Cores Recovered 1 | . . . . . . . . . . . 1 Used . | . . . . . . . . . . . . Hacking Detections 27 | . 3 . 8 . . . 5 . 2 2 7 Full Trace Events 2 | . 1 . . . . . . . . . 1 Feedback Events 1 | . . . . . . . . . . . 1 Hackware Fried 1 | . . . . . . . . . . . 1 Feedback Blocked . | . . . . . . . . . . . . Robot Schematics Acquired . | . . . . . . . . . . . . Robots Built . | . . . . . . . . . . . . Matter . | . . . . . . . . . . . . Time . | . . . . . . . . . . . . Total Robot Build Rating . | . . . . . . . . . . . . Part Schematics Acquired 7 | . . . 2 . . . 4 . . . 1 Parts Built 3 | . . . . . . . . . . . 3 Matter 426 | . . . . . . . . . . . 426 Time 141 | . . . . . . . . . . . 141 Total Part Build Rating 15 | . . . . . . . . . . . 15 Parts Repaired 4 | . . . 1 . . . 1 . . 2 . Time 158 | . . . 38 . . . 44 . . 76 . Parts Recycled . | . . . . . . . . . . . . Recycled Matter . | . . . . . . . . . . . . Retrieved Matter . | . . . . . . . . . . . . Retrieved Components . | . . . . . . . . . . . . Parts Scanalyzed 6 | . . . 1 . . . 5 . . . . Part Schematics Acquired 5 | . . . 1 . . . 4 . . . . Parts Damaged . | . . . . . . . . . . . . Bothacking | -11 -10 -10 -9 -9 -9 -8 -8 -8 -8 -8 -7 ------------ Run | Scr Mat Min Mat Min Exi Min Mat Gar Mat Sto Fac Used RIF Installer 1 | . . . . . . . . 1 . . . Robots Hacked 1 | . . . . . . . . . . . 1 Non-combat 1 | . . . . . . . . . . . 1 Combat . | . . . . . . . . . . . . Robot Hacks Applied 1 | . . . . . . . . . . . 1 find_chute 1 | . . . . . . . . . . . 1 Relay Couplers Released 7 | . . . . . . . . 7 . . . Machine Destruction 7 | . . . . . . . . 7 . . . Robots Rewired . | . . . . . . . . . . . . Allies Hacked . | . . . . . . . . . . . . Hacks Repelled . | . . . . . . . . . . . . Allies | -11 -10 -10 -9 -9 -9 -8 -8 -8 -8 -8 -7 -------- Run | Scr Mat Min Mat Min Exi Min Mat Gar Mat Sto Fac Total Allies 5 | . . . . . . . . . . 2 3 Largest Group 2 | . . . . . . . . . . 2 2 Highest-Rated Group 62 | . . . . . . . . . . 62 36 Highest-Rated Ally 31 | . . . . . . . . . . 31 26 Total Orders . | . . . . . . . . . . . . Ally Attacks 32 | . . . . . . . . . . 32 . Total Damage 550 | . . . . . . . . . . 550 . Kills 3 | . . . . . . . . . . 3 . Allies Corrupted . | . . . . . . . . . . . . Allies Melted . | . . . . . . . . . . . . Intel | -11 -10 -10 -9 -9 -9 -8 -8 -8 -8 -8 -7 ------- Run | Scr Mat Min Mat Min Exi Min Mat Gar Mat Sto Fac Robot Analysis Total 1 | . . . 1 . . . . . . . . Derelict Logs Recovered 2 | . . . . 2 . . . . . . . Drone Launches . | . . . . . . . . . . . . Drone Recoveries . | . . . . . . . . . . . . Exploration | -11 -10 -10 -9 -9 -9 -8 -8 -8 -8 -8 -7 ------------- Run | Scr Mat Min Mat Min Exi Min Mat Gar Mat Sto Fac Turns Passed 8913 | 106 981 160 1754 914 628 210 1585 539 523 442 1071 Spaces Moved 4560 | 52 517 101 700 239 313 102 604 218 191 143 1380 Core 5 | 5 . . . . . . . . . . . Treads 3213 | 47 517 101 700 239 313 102 604 218 191 143 38 Legs . | . . . . . . . . . . . . Wheels . | . . . . . . . . . . . . Hover . | . . . . . . . . . . . . Flight 1342 | . . . . . . . . . . . 1342 Fastest Speed 32 | 50 160 160 160 200 200 200 200 200 220 192 32 Average Speed 144 | 149 160 160 189 200 200 200 200 203 220 203 36 Slowest Speed 280 | 160 160 160 200 200 200 200 220 220 280 220 192 Overloaded Moves . | . . . . . . . . . . . . Propulsion Burnouts . | . . . . . . . . . . . . Robots Hopped 1 | . . . . . . . . . . . 1 Cave-ins Triggered . | . . . . . . . . . . . . Exploration Rate (%) 44 | 3 74 38 63 58 70 32 66 41 19 36 35 Regions Visited 11 Branch Regions 5 Pre-discovered Areas 1 | . . . . . . . . . . 1 . Known Exits Taken 2 | . 1 . . . . . 1 . . . . Unknown Exits Taken 8 | 1 . 1 1 1 1 1 . . 1 1 . Scrap Searched 1 | . . . . . . 1 . . . . . Spaces Dug 60 | . . . . 1 . . 9 . 10 1 39 Terrain Destroyed 366 | . 18 . 54 54 . 11 58 10 61 52 48 Melee 52 | . . . . 1 . . 9 . 2 1 39 Projectile 5 | . . . . . . . 2 1 2 . . AOE 309 | . 18 . 54 53 . 11 47 9 57 51 9 Actions | -11 -10 -10 -9 -9 -9 -8 -8 -8 -8 -8 -7 --------- Run | Scr Mat Min Mat Min Exi Min Mat Gar Mat Sto Fac Total 6200 | 68 604 100 967 587 316 106 809 264 248 270 1861 Wait 804 | . 8 . 55 283 . 1 27 2 3 89 336 Move 4547 | 52 515 100 699 238 312 101 604 216 190 142 1378 Hop 1 | . . . . . . . . . . . 1 Pick Up 97 | 4 17 . 38 1 1 1 19 1 4 5 6 Fast Attach 37 | 6 2 . 8 1 . . 7 1 3 4 5 Attach 34 | . 3 . 8 5 . . 3 1 1 1 12 Detach 4 | . . . . . . . . . . . 4 Swap 96 | . 6 . 24 8 1 1 21 10 10 7 8 Drop 103 | . 8 . 32 1 2 . 26 4 10 6 14 Fire 347 | 4 42 . 100 44 . 1 88 27 25 13 3 Melee 77 | . . . . 5 . . 9 . 2 3 58 Ram . | . . . . . . . . . . . . Kick . | . . . . . . . . . . . . Crush 15 | 2 3 . 3 1 . 1 5 . . . . Escape Stasis 38 | . . . . . . . . 2 . . 36 Rewire . | . . . . . . . . . . . . Trap . | . . . . . . . . . . . . Miscellaneous . | . . . . . . . . . . . . Route ------- -11/Scrapyard -10/Materials (discovered 3 exits: *Mat x2 / *Min) -10/Mines -9/Materials (discovered 2 exits: *Mat / [*Min]) -9/Mines -9/Exiles (discovered 2 exits: [*Min x2]) -8/Mines -8/Materials (discovered 3 exits: *Fac x2 / Gar) -8/Garrison -8/Materials -8/Storage -7/Factory (discovered 6 exits: *Fac x4 / *Low x2) History --------- Turn | Location | Event 3 | -11/Scrapyard | Discovered new exit (range 16) 107 | -11/Scrapyard | Entered Materials 312 | -10/Materials | Build established: Mutant 322 | -10/Materials | Discovered new exit (range 16) 486 | -10/Materials | Identified exit to Mines 492 | -10/Materials | Discovered new exit (range 8) 1088 | -10/Materials | Entered Mines 1236 | -10/Mines | Discovered new exit (range 5) 1248 | -10/Mines | Entered Materials 1248 | -9/Materials | Evolved 2 slots: Utility x2 1551 | -9/Materials | Build established: Hauler-Mutant 1680 | -9/Materials | Lost 5 parts (1p2n2w) 1685 | -9/Materials | Discovered new exit (range 12) 2284 | -9/Materials | Repaired Lgt. Nuclear Core 2631 | -9/Materials | Discovered new exit (range 8) 2956 | -9/Materials | Build established: Scavenger-Mutant 3002 | -9/Materials | Entered Mines 3130 | -9/Mines | Learned Materials emergency access door positions 3175 | -9/Mines | Learned Materials stockpile data 3260 | -9/Mines | Assembled infested the area 3312 | -9/Mines | Destroyed 15 combat bots 3552 | -9/Mines | Build established: Hauler-Mutant 3634 | -9/Mines | Core integrity fell below 50% 3812 | -9/Mines | Lost 5 parts (1p2n2w) 3908 | -9/Mines | Deemed a non-threat by the Exiles lab entrance 3908 | -9/Mines | Discovered new exit (range 5) 3916 | -9/Mines | Entered Exiles 3948 | -9/Exiles | Discovered new exit (range 15) 3970 | -9/Exiles | Met 8R-AWN 3998 | -9/Exiles | Met EX-HEX 4106 | -9/Exiles | Met EX-DEC 4254 | -9/Exiles | Met EX-BIN 4282 | -9/Exiles | Aligned with FarCom system 4284 | -9/Exiles | Given EX-Vault access code 4330 | -9/Exiles | Opened EX-Vault 4349 | -9/Exiles | Found Lightpack 2.0 4388 | -9/Exiles | Warned to stay clear of 0b10 Research branches 4526 | -9/Exiles | Discovered new exit (range 10) 4544 | -9/Exiles | Left Exiles lab with Lightpack 2.0 4544 | -9/Exiles | Entered Mines 4740 | -8/Mines | Discovered new exit (range 7) 4754 | -8/Mines | Entered Materials 4754 | -8/Materials | Evolved 2 slots: Utility x2 5388 | -8/Materials | Discovered new exit (range 15) 6091 | -8/Materials | Repaired Gauss Rifle 6162 | -8/Materials | Discovered new exit (range 16) 6339 | -8/Materials | Identified exit to Garrison 6339 | -8/Materials | Entered Garrison 6349 | -8/Garrison | Installed Relay Interface Framework 6374 | -8/Garrison | Triggered checkpoint 6457 | -8/Garrison | Triggered checkpoint 6566 | -8/Garrison | Triggered checkpoint 6598 | -8/Garrison | Triggered checkpoint 6602 | -8/Garrison | Triggered checkpoint 6716 | -8/Garrison | Triggered checkpoint 6746 | -8/Garrison | Garrison Relay disabled 6846 | -8/Garrison | Discovered new exit (range 12) 6878 | -8/Garrison | Entered Materials 7054 | -8/Materials | Discovered new exit (range 14) 7315 | -8/Materials | Garrison activated, responded to threat 7401 | -8/Materials | Entered Storage 7415 | -8/Storage | Met a pair of Derelict thieves 7530 | -8/Storage | Destroyed 7 combat bots 7661 | -8/Storage | Repaired Gauss Rifle 7699 | -8/Storage | Repaired Mni. Grenade Launcher 7752 | -8/Storage | Learned location of Armory (-3) 7814 | -8/Storage | Discovered new exit (range 15) 7843 | -8/Storage | Entered Factory 7843 | -7/Factory | Evolved 2 slots: Utility x2 8006 | -7/Factory | Discovered new exit (range 10) 8226 | -7/Factory | Build established: Hacker-Sprinter 8243 | -7/Factory | Identified exit to Lower Caves 8354 | -7/Factory | Discovered new exit (range 16) 8370 | -7/Factory | Hacking Suite fried by hacking feedback 8433 | -7/Factory | Fabricated Imp. System Shield (x1) 8482 | -7/Factory | Fabricated Imp. System Shield (x1) 8531 | -7/Factory | Fabricated Imp. System Shield (x1) 8772 | -7/Factory | Central database locked down 8818 | -7/Factory | Identified exit to Factory 8914 | -7/Factory | Self-destructed Last Messages --------------- >>Enumerate(Squads) Retrieving dispatch records... Found 33 active squads: 12x Security 7x Surveillance 8x Patrol 6x Transport 08902_ Connecting with Terminal... >>Traps(Disarm) Disarmed 6 Chute Traps. >>Traps(Locate) No traps found in local area. 08904_ Sneak attack on U-05 Engineer. 08904_ U-05 Engineer destroyed. 08906_ Acquired 7 matter. 08912_ U-05 Engineer builds a Wall. 08912_ Sneak attack on K-01 Serf. 08912_ Jacked K-01 Serf... >>find_chute No applicable chute records found in memory. Map ----- +----------------------------------------------------+ | * #?????????????????? ????????????????????? | | """=% #????????????????? #???????????????????? | | """ #??????????????? #???????????????????? | | " [ ##?????????????? #???????????????????? | | = #????????????? +???????????????????? | | #?????????????? #???????????????????? | | * #?????????????? #???????????????????? | | #?????????????? #???????????????????? | | % ## ############### #???" ? ????????????? | | ! #???" ? #???????????? | | * = #???" ? #???????????? | | + " " ? #???????????? | | #?" " " #???????????? | | #?" " " #???????????? | | ################# #?? " " #???????????? | | ????????????????# #?? " " #???????????? | | ????????????????# #??? #???????????? | | ????????????????# #??? /???????????? | | ????????????????# #???? ????????????? | | ????????????????# #???? ????????????? | | ????????????????# ##+#?###?????????###? | | ????????????????# #?# #????????? ? | | ????????????????# #####????????? ? | | ????????????????# u #????????? ? | | ????????????????# #????????? ? | | ????????????????# @ #????????? ? | | ????????????????# k o o #######???# #? | | ????????????????# =|%!!#???# #? | | ????????????????# ###################=#####+## | | ????????????????# # "" #????# ## | | ????????????????# # """ ""S #???## ##! | | ????????????????# + """ "" ##### # """ | | ??????????????Y?# # [ """ + T / """ | | ????????????????# # ##### # """ | | ????????????????? ? ?# """ """ #???##### | | ??????????????????????# """ """ #???????## #### | | ??????????????????????# """ """ #????????## | | ??????????????????????# #?????????## | | ??????????????????????# !#??????????# | | ???????????????????????? #??????????# | | ???????????????????????? ! #??????????# | | ????????????????????????############??????????# "" | | ??????????????????????????????????????????????#### | | ?????????????????????????????????????????????????? | | ?????????????????????????????????????????????????? | | ?????????????????????????????????????????????????? | | ?????????????????????????????????????????????????? | | ?????????????????????????????????????????????????? | | ?????????????????????????????????????????????????? | | ?????????????????????????????????????????????????? | +----------------------------------------------------+ Best States ------------- Heat Dissipation 45 Energy Generation 15 Energy Capacity 275 Matter Stores 300 Matter Capacity 300 Sight Range 16 Terrain Scan Density 10 Additional Mass Support 9 Armor Coverage 300 Resistance: KI 20 Resistance: TH 10 Core Shielding 20 Propulsion Shielding 66 Evasion (%) 63 Recoil Reduction 2 Offensive Hacking 30 Defensive Hacking 36 Item Schematics ----------------- Med. Storage Unit | -9/Materials | Hacked Hacking Suite | -9/Materials | Scanalyzed System Shield | -8/Materials | Scanalyzed Imp. Flight Unit | -8/Materials | Scanalyzed Datajack | -8/Materials | Scanalyzed Adv. Weight Redist. System | -8/Materials | Scanalyzed Imp. System Shield | -7/Factory | Hacked Robot Schematics ------------------ None Fabricated ------------ Imp. System Shield | x1 | -7/Factory Imp. System Shield | x1 | -7/Factory Imp. System Shield | x1 | -7/Factory Alien Tech Used ----------------- None Achievements -------------- None Challenges ------------ None Game ------ Seed LobotomyShrapnelLog Manual? 0 Play Time 00:50:13 Cumulative 425.8 hours Start 2019.12.30 @ 18:40:07 End 2019.12.31 @ 11:57:41 Sessions 1 Manual Loads 0 Difficulty Rogue Special Mode None Game No. 745 Rogue 745 Adventurer 0 Explorer 0 Win Type - Total 31 Types 24/0/3/3/1/0/0 Lore% 93 Gallery% 91 Achievement% 80 Wizard Run 0 Options --------- ASCII 1 Keyboard 0 Movement Numpad Keybinds 0 Fullscreen 0 Font 14/SmallcapsGlow Map View 76x50 Tactical HUD 1 Map Filters NONE Filters NONE Steam 1 RUN: 44f11bb5-2470-44ba-80b6-e65b3c6fb074